Cogmind - Beta 17 @@@ ROGUE MODE // 2026.08.14 @ 04:25:18 Player: Alicianrone Result: Destroyed by Autobeam Turret with Autobeam Performance ------------- Evolutions (0) 0 Regions Visited (2) 400 Robots Destroyed (38) 190 Value Destroyed (982) 982 Prototype IDs (0) 0 Alien Tech Used (0) 0 Bonus (0) 0 TOTAL SCORE: 1572 Bonus ------- None Cogmind --------- Core Integrity 0/250 Matter 91/300 Energy 250/250 System Corruption 0% Temperature Cool (6) Movement Rolling (155) Ox5 Location -10/Subcaves Parts ------- > --- POWER (1) -------- Ion Engine > --- PROPULSION (2) --- Wheel Subdweller Monowheel > --- UTILITY (2) ------ High-capacity Storage Unit Makeshift Light Armor Plating > --- WEAPON (2) ------- Subdweller Machine Gun Grenade Launcher > --- INVENTORY (20) --- High-capacity Storage Unit Machine Analyzer Cobbler Unit Particle Gun Battle Rifle Barrage Gun Mining Laser Peak State ------------ > --- POWER ------------ (None) > --- PROPULSION ------- Wheel Subdweller Monowheel > --- UTILITY ---------- High-capacity Storage Unit Makeshift Light Armor Plating > --- WEAPON ----------- Subdweller Machine Gun Subdweller Machine Gun > --- INVENTORY -------- Ion Engine High-capacity Storage Unit Machine Analyzer Particle Gun Battle Rifle Barrage Gun Grenade Launcher Mining Laser [Rating: 13] Favorites ----------- Power Ion Engine Engine Ion Engine Propulsion Light Treads Treads Light Treads Wheel Compact Wheel Utility High-capacity Storage Unit Device Seismic Detector Storage High-capacity Storage Unit Protection Light Armor Plating Weapon Light Assault Rifle Energy Gun Subdweller Laser Energy Cannon Subdweller Beam Cannon Ballistic Gun Light Assault Rifle Launcher Grenade Launcher Build | -11 -10 -10 ------- Run | Yrd Mat Sub Slots Evolved . | . . . Power . | . . . Propulsion . | . . . Utility . | . . . Weapon . | . . . Parts Attached 31 | 7 7 17 Power 3 | 1 . 2 Engine 3 | 1 . 2 Core . | . . . Reactor . | . . . Propulsion 7 | 2 2 3 Treads 2 | . 2 . Leg . | . . . Wheel 5 | 2 . 3 Hover . | . . . Flight . | . . . Utility 5 | 2 2 1 Device 1 | 1 . . Storage 2 | 1 1 . Processor . | . . . Hackware . | . . . Protection 2 | . 1 1 Artifact . | . . . Weapon 16 | 2 3 11 Energy Gun 6 | 2 . 4 Energy Cannon 1 | . . 1 Ballistic Gun 8 | . 2 6 Ballistic Cannon . | . . . Launcher 1 | . 1 . Special Weapon . | . . . Impact Weapon . | . . . Slashing Weapon . | . . . Piercing Weapon . | . . . Special Melee Weapon . | . . . Unidentified Prototypes . | . . . Parts Lost 14 | . 3 11 Power 2 | . 1 1 Propulsion 5 | . 1 4 Utility 2 | . . 2 Weapon 5 | . 1 4 Highest Loss Streak 7 | . 1 7 To Critical Strikes . | . . . Average Backups 8 | 2 7 10 Power . | . 1 . Propulsion 1 | 1 2 1 Utility 1 | . 1 1 Weapon 4 | . 3 6 Tool/Special . | . . . Unused Backups 6 | . . 6 Power . | . . . Propulsion . | . . . Utility 3 | . . 3 Weapon 3 | . . 3 Tool/Special . | . . . Average Slot Usage (%) 91 | . 93 88 Engine 9 | . 8 10 Treads 10 | . 18 1 Wheel 15 | . 9 21 Device 7 | . 6 8 Storage 14 | . 14 14 Protection 6 | . 7 4 Energy Gun 4 | . 4 4 Ballistic Gun 21 | . 22 19 Peak Build Rating 13 | 7 8 13 Average Rating 8 | 5 6 10 On Entrance 4 | . 7 7 Avg Prop Armor Cover (%) 10 | . 11 7 Naked Turns . | . . . Heaviest Build 58 | 15 50 58 Greatest Support 40 | 26 40 30 Greatest Overweight (x) 5 | . 3 5 Average Overweight (x) 1 | . 1 2 Largest Inventory Capacity 20 | 8 20 20 Average Capacity 16 | 7 13 20 Most Carried 13 | 5 9 13 Average Carried 8 | 2 7 10 Final Capacity 20 | 8 20 20 Final Carried 9 | 5 9 8 Class Distribution -------------------- 88% | Mutant 11% | Scavenger-Mutant Dominant Class ---------------- Mutant | -10/Materials Mutant | -10/Subcaves Resources | -11 -10 -10 ----------- Run | Yrd Mat Sub Matter Collected 966 | 152 397 417 Remotely . | . . . Salvage Created 1224 | 102 632 490 Parts 67 | 10 32 25 Haulers Intercepted 1 | . 1 . Recyclers Shooed . | . . . Parts Field Recycled . | . . . Retrieved Matter . | . . . Parts Self-Destructed 6 | . . 6 Prevented . | . . . Parts Restored . | . . . Kills | -11 -10 -10 ------- Run | Yrd Mat Sub Combat Hostiles Destroyed 28 | . 14 14 Guns 16 | . 7 9 Cannons 1 | . . 1 AOE 11 | . 7 4 Classes Destroyed 10 | 1 6 3 Worker 1 | . 1 . Tunneler 4 | 4 . . Hauler 1 | . 1 . Recycler 1 | . 1 . Turret 1 | . . 1 Watcher 2 | . 2 . Swarmer 7 | . 3 4 Grunt 11 | . 11 . Cobbler 1 | . . 1 Subdweller 10 | . . 10 Best Kill Streak 6 | 3 6 4 Combat Bots Only 5 | . 5 4 Max Kills in Single Turn 3 | 1 3 1 Gunslinging . | . . . Exploded 2 | . 2 1 Melee . | . . . Uniques/NPCs Destroyed . | . . . Combat | -11 -10 -10 -------- Run | Yrd Mat Sub Hostile Shots Fired 145 | . 58 87 Missed 45 | . 15 30 Hits 100 | . 43 57 Projectile 100 | . 43 57 Critical Strikes 3 | . . 3 Damage Taken 1608 | . 548 1060 Core 255 | . 102 153 Absorbed by Shields . | . . . Core Remaining (%) 100 | 100 . . Volleys Fired 167 | 8 80 79 Largest 2 | 2 2 2 Hottest 120 | 90 90 120 Shots Fired 278 | 16 146 116 Gun 248 | 16 141 91 Cannon 7 | . . 7 Launcher 23 | . 5 18 Special . | . . . Kinetic 163 | . 113 50 Thermal 62 | 8 6 48 Explosive 23 | . 5 18 Electromagnetic 30 | 8 22 . Robot Hit Streak 19 | 6 14 19 Robot Miss Streak 5 | 2 5 2 Penetration Max . | . . . Secondary Targets 1 | . . 1 Max Gunslinging Chain 1 | . . 1 Shots Hit Robots 176 | 11 90 75 Core Hits 88 | 4 44 40 Critical Kills 1 | . . 1 Critical Parts Destroyed 2 | . 2 . Critical Strikes 4 | 1 2 1 Burn 1 | 1 . . Destroy 3 | . 2 1 Melee Attacks . | . . . Impact . | . . . Slashing . | . . . Piercing . | . . . Sneak Attacks . | . . . Combat Hostiles . | . . . Follow-up Attacks . | . . . Damage Inflicted 3174 | 156 1101 1917 Guns 2215 | 156 790 1269 Cannons 165 | . . 165 Explosions 794 | . 311 483 Melee . | . . . Ramming . | . . . Kinetic 1245 | . 597 648 Thermal 939 | 61 92 786 Explosive 740 | . 257 483 Electromagnetic 250 | 95 155 . Impact . | . . . Slashing . | . . . Piercing . | . . . Highest Corruption . | . . . Average Corruption . | . . . Corruption Purged . | . . . Corruption Blocked . | . . . Overload Shots . | . . . Overflow Damage 1 | . . 1 Projectiles . | . . . Explosions 1 | . . 1 Melee . | . . . Knockbacks . | . . . Impact . | . . . Kinetic . | . . . Secondary . | . . . Self-Inflicted Damage 142 | . 62 80 Shots 5 | . 2 3 Rammed . | . . . Targets Rammed . | . . . Kicked . | . . . Crushed . | . . . Highest Temperature 542 | 150 192 542 Average Temperature 72 | 65 33 272 Received Heat Transfer 886 | . 231 655 Effects 3 | . . 3 Matter Decay 1 | . . 1 Short Circuit 1 | . . 1 Damage (minor) 1 | . . 1 Siege Activations . | . . . Martial Activations . | . . . Shielding Activations . | . . . Robots Disrupted . | . . . Combat Hostiles . | . . . Robots Corrupted . | . . . Combat Hostiles . | . . . Parts Fried . | . . . Impact Corruptions . | . . . Robots Melted . | . . . Combat Hostiles . | . . . Parts Melted 3 | 2 . 1 Heat Transferred 1503 | 259 211 1033 Parts Sabotaged . | . . . Parts Stolen . | . . . Parts Stripped . | . . . Power Chain Reactions 2 | . 2 . Alert | -11 -10 -10 ------- Run | Yrd Mat Sub Maximum Alert Level . | . . . Low Security (%) 100 | 100 100 . Level 1 . | . . . Level 2 . | . . . Level 3 . | . . . Level 4 . | . . . Level 5 . | . . . High Security . | . . . Max Security . | . . . Peak Influence 160 | 15 160 . Initial 3 | . 3 . Average 91 | 2 98 . Influence Increases 828 | 20 498 310 Destroy 0b10 Robot/C 380 | . 280 100 Destroy 0b10 Robot/NC 45 | 20 25 . Destroy Leader 76 | . 76 . Select Force Hacks 60 | . 60 . Destroy Structure 42 | . 42 . Lose Combat Pursuer 225 | . 15 210 Influence Decreases 546 | 15 483 48 Entered New Map 12 | . 2 10 Time Decay 494 | 15 451 28 Lost Part 40 | . 30 10 Squads Dispatched 3 | . 3 . Investigation 2 | . 2 . Extermination . | . . . Reinforcement 1 | . 1 . Assault . | . . . Garrison . | . . . Intercept . | . . . Searches Triggered . | . . . Construction Impeded . | . . . Haulers Reinforced . | . . . Active Scanning Responses . | . . . Cargo Convoy Interrupts . | . . . Stealth | -11 -10 -10 --------- Run | Yrd Mat Sub Distress Signals 1 | . 1 . Communications Jammed . | . . . Distress Signals . | . . . Times Spotted 47 | . 27 20 Peak Tracking Total 4 | . 4 4 Tactical Retreats 4 | . 1 3 Traps | -11 -10 -10 ------- Run | Yrd Mat Sub Traps Triggered 1 | . 1 . Indirectly . | . . . Trap Hack Attempts . | . . . Triggered . | . . . Disarmed . | . . . Reprogrammed . | . . . Reused . | . . . Traps Extracted . | . . . Installed . | . . . Triggered . | . . . Machines | -11 -10 -10 ---------- Run | Yrd Mat Sub Machines Disabled 4 | . . 4 Max in Single Turn 2 | . . 2 Machines Repaired . | . . . Machines Dismantled . | . . . Machines Sabotaged . | . . . Overloaded Fab Kills . | . . . Hacking | -11 -10 -10 --------- Run | Yrd Mat Sub Machines Accessed 5 | . 5 . Terminals 3 | . 3 . Fabricators . | . . . Repair Stations . | . . . Recycling Units 2 | . 2 . Scanalyzers . | . . . Garrison Access . | . . . Total Hacks 6 | . 6 . Successful 4 | . 4 . Failed 2 | . 2 . Catastrophic 1 | . 1 . Database Lockouts . | . . . Manual 5 | . 5 . Terminals 4 | . 4 . Fabricators . | . . . Repair Stations . | . . . Recycling Units 2 | . 2 . Scanalyzers . | . . . Garrison Access . | . . . Terminal Hacks 2 | . 2 . Locate Traps 1 | . 1 . Hauler Manifests 1 | . 1 . Fabricator Hacks . | . . . Repair Station Hacks . | . . . Recycling Unit Hacks . | . . . Scanalyzer . | . . . Garrison Access Hacks . | . . . Unauthorized Hacks 2 | . 2 . Terminals . | . . . Fabricators . | . . . Repair Stations . | . . . Recycling Units 2 | . 2 . Tunnel 2 | . 2 . Scanalyzers . | . . . Garrison Access . | . . . Data Cores Recovered . | . . . Used . | . . . Hacking Detections 1 | . 1 . Full Trace Events . | . . . Feedback Events . | . . . Feedback Blocked . | . . . Robot Schematics Acquired . | . . . Robots Built . | . . . Authchips . | . . . Time . | . . . Total Robot Build Rating . | . . . Part Schematics Acquired . | . . . Parts Built . | . . . Authchips . | . . . Time . | . . . Total Part Build Rating . | . . . Part Studies Acquired . | . . . Parts Repaired . | . . . Time . | . . . Parts Recycled . | . . . Recycled Matter . | . . . Retrieved Matter . | . . . Retrieved Components . | . . . Parts Scanalyzed . | . . . Part Schematics Acquired . | . . . Parts Damaged . | . . . Bothacking | -11 -10 -10 ------------ Run | Yrd Mat Sub Used RIF Installer . | . . . Robots Hacked . | . . . Non-combat . | . . . Combat . | . . . Robot Hacks Applied . | . . . Relay Couplers Released . | . . . Fabnet Peak Effective % . | . . . Robots Rewired . | . . . Allies Hacked . | . . . Hacks Repelled . | . . . Allies | -11 -10 -10 -------- Run | Yrd Mat Sub Total Allies . | . . . Largest Group . | . . . Highest-Rated Group . | . . . Highest-Rated Ally . | . . . Total Orders . | . . . Ally Attacks . | . . . Total Damage . | . . . Kills . | . . . Allies Corrupted . | . . . Allies Melted . | . . . Intel | -11 -10 -10 ------- Run | Yrd Mat Sub Active Infowar (turns) 1222 | 4 538 680 Seismic 1222 | 4 538 680 Robot Analysis Total . | . . . Derelict Logs Recovered . | . . . Drone Launches . | . . . Drone Recoveries . | . . . Exploration | -11 -10 -10 ------------- Run | Yrd Mat Sub Turns Passed 2437 | 90 1232 1115 Spaces Moved 1382 | 54 724 604 Core 2 | 2 . . Treads 169 | . 169 . Legs . | . . . Wheels 1211 | 52 555 604 Hover . | . . . Flight . | . . . Fastest Speed 50 | 50 90 105 Average Speed 127 | 89 128 130 Slowest Speed 160 | 100 160 155 Overloaded Moves . | . . . Propulsion Burnouts . | . . . Robots Hopped . | . . . Potential Cave-ins . | . . . Cave-ins Triggered . | . . . Exploration Rate (%) 44 | 4 98 32 Regions Visited 2 Branch Regions 1 Pre-discovered Areas 3 | . 2 1 Known Exits Taken . | . . . Unknown Exits Taken 2 | 1 1 . Scrap Searched . | . . . Spaces Dug . | . . . Terrain Destroyed 90 | . 41 49 Melee . | . . . Projectile . | . . . AOE 90 | . 41 49 Terrain Rammed . | . . . Walls Destroyed . | . . . Machines Disabled . | . . . Actions | -11 -10 -10 --------- Run | Yrd Mat Sub Total 1780 | 76 895 809 Wait 144 | 3 68 73 Move 1380 | 53 723 604 Hop . | . . . Pick Up 23 | 5 6 12 Fast Attach 15 | 7 4 4 Attach 11 | . 1 10 Detach . | . . . Swap 30 | . 11 19 Drop 10 | . 2 8 Fire 167 | 8 80 79 Melee . | . . . Ram . | . . . Kick . | . . . Crush . | . . . Escape Stasis . | . . . Rewire . | . . . Trap . | . . . Miscellaneous . | . . . Route ------- -11/Scrapyard -10/Materials (discovered 6 exits: [*Mat x3] / [*Min x2] / [*Sub]) -10/Subcaves (discovered 1 exit: [*Rec]) History --------- Turn | Location | Event 35 | -11/Scrapyard | Discovered new exit (range 15) 91 | -11/Scrapyard | Entered Materials 341 | -10/Materials | Build established: Mutant 347 | -10/Materials | Discovered new exit (range 6) 673 | -10/Materials | Discovered new exit (range 8) 1040 | -10/Materials | Discovered new exit (range 14) 1083 | -10/Materials | Discovered new exit (range 8) 1174 | -10/Materials | Discovered new exit (range 16) 1313 | -10/Materials | Discovered new exit (range 8) 1323 | -10/Materials | Entered Subcaves 1324 | -10/Subcaves | Approached by a straggling Scientist 1338 | -10/Subcaves | Shifting Twisted Machinery released Battle Rifle 1341 | -10/Subcaves | Shifting Twisted Machinery released Flamer 1423 | -10/Subcaves | Shifting Twisted Machinery released Sub. Laser 1425 | -10/Subcaves | Shifting Twisted Machinery released Sub. Optics 1696 | -10/Subcaves | Core integrity fell below 50% 1984 | -10/Subcaves | Learned location of Zion (-6) 1984 | -10/Subcaves | Met a Zionite searching for "candidates" 2153 | -10/Subcaves | Core integrity fell below 20% 2199 | -10/Subcaves | Lost 7 parts (1p2n1u3w) 2296 | -10/Subcaves | Shifting Twisted Machinery released Barrage Gun 2375 | -10/Subcaves | Discovered new exit (range 12) 2432 | -10/Subcaves | Ambushed by Subdweller buried in earth 2438 | -10/Subcaves | Destroyed by Autobeam Turret with Autobeam Last Messages --------------- down. Barrage Gun falls loose from the Twisted Machinery. 02369_ Machine disabled. 02369_ S-10 Pest destroyed. 02369_ Machine disabled. 02370_ S-10 Pest springs to life. 02371_ S-10 Pest destroyed. 02373_ Destroyed Lgt. Ion Engine. 02375_ S-10 Pest destroyed. 02375_ EXIT=FOUND 02380_ Sub. Machine Gun destroyed. 02380_ S-10 Pest destroyed. 02393_ The unstable cave ceiling collapses. 02395_ Flight Unit fries itself beyond repair. 02418_ The unstable cave ceiling collapses. 02433_ FW-9L3(R): "SLEEPOVER!" 02436_ FW-9L3(R) destroyed. 02437_ The unstable cave ceiling collapses. 02437_ Machine disabled. Map ----- +----------------------------------------------------+ | ?????????????????????????????????????????????????? | | ?????????????????????????????????????????????????? | | ?????????????????????????????????????????????????? | | ?????????????????????????????????????????????????? | | ?????????????????????????????????????????????????? | | ?????????????????????????????????????????????????? | | ?????????????????????????????????????????????????? | | ?????????????????????????????????????????????????? | | ?????????????????????????????????????????????????? | | ?????????????????????????????????????????????????? | | ?????????????????????????????????????????????????? | | ???????????????????#?????????????????????????????? | | ???????????????#####<###?????????????????????????? | | ?????????????###"" """ ????????????????????????? | | ?????????????# ????????????????????????? | | ?????????????# # t "????????????????????????? | | ??????????? # ????????????????????????? | | ???????????? ????????????????????????? | | ???????????? ????????????????????????? | | ?????????? # ###???????#####?????????? | | ?????????? ######?##"""########### | | ?????????? ## ### """ " % | | ??????????? = # ###"" """ | | ??????????? % ##" """"" % | | ??????????????????# ## """""## # | | ??????????????????###### @ """"""## # | | ???????????????????????# """"" ### # | | ???????????????????????# ## """""##?#% # | | ???????????????????????# ### ##??# ## | | ???????????????????????# ##?## ## ##???# ### | | ???????????????????????# ##???#### #????# ### | | ??????????????????????# #???????# #????## | | ??????????????????????# #??????## ###??## & | | ??????????????????????## #?????## #### &% | | ???????????????????????########## ## % | | ????????????????????????# ## | | ??????????????????????????# #### ## | | ?????????????????????????## ##?# ## ##### | | ?????????????????????????# ##??########???## | | ?????????????????????????# # ##???????????????? | | ???????????????????????? ?# #????????????????? | | ???????????????????????#??## #????????????????? | | ?????????????????????????## #????????????????? | | ???????????????????????### #??????? # | | ??????????????????????## ###??????? | | ??????????????????????# #????????? | | ??????????????????????# #####????????? | | ??????????????????????# ##??????????????## # | | ??????????????????????# #????????????????# ??# # | | ??????????????????????# #???????????????????# ?? | +----------------------------------------------------+ Best States ------------- Heat Dissipation 25 Energy Generation 10 Energy Capacity 250 Matter Stores 300 Matter Capacity 300 Sight Range 16 Terrain Scan Density 10 Armor Coverage 150 Evasion (%) 42 Recoil Reduction 2 Item Schematics ----------------- None Robot Schematics ------------------ None Fabricated ------------ Nothing Repaired ---------- Nothing Studied --------- None Alien Tech Used ----------------- None Achievements -------------- None Challenges ------------ None Game ------ Seed SmallGravmagAutogun Manual? 0 Play Time 00:16:04 Cumulative 1011.2 hours Start 2026.08.14 @ 04:11:07 End 2026.08.14 @ 04:25:18 Sessions 1 Manual Loads 0 Difficulty Rogue Special Mode None Game No. 280 Rogue 280 Adventurer 0 Explorer 0 Win Type - Total 44 Types 13/9/10/2/2/0/4/1/1/2 Lore% 97 Gallery% 91 Achievement% 87 Wizard Run 0 Options --------- Layout 1 ASCII 0 Keyboard 0 Movement Mouse Keybinds 0 Fullscreen 2 Font 32/SmallcapsGlow Map View 50x35 Zoom Use 0% Tactical HUD 1 Map Filters NONE Filters NONE Steam 1 RUN: a3f3bfe4-8d3d-4863-bf7d-26893b23f238